bitfinex/quotes_ETHUSD_20250106
["timestamp","ask_amount","ask_price","bid_price","bid_amount"]
[1736183714271,3.0,3697.9,3697.4,0.8193]
[1736183714473,3.0,3698.0,3697.5,35.0]
[1736183714635,3.0,3697.7,3697.5,35.0]
[1736183715693,2.70417,3698.0,3697.5,35.0]
[1736183716040,3.0,3697.8,3697.5,35.0]
[1736183717390,3.0,3698.0,3697.5,2.71757592]
[1736183717677,5.70397,3698.3,3697.6,0.02704147]
[1736183717993,3.0,3698.1,3698.0,35.0]
[1736183718311,2.70409,3698.1,3698.0,35.0]
[1736183719677,5.26449261,3698.1,3698.0,35.0]
[1736183720086,11.68149261,3698.1,3698.0,35.0]
[1736183720246,13.12752887,3698.1,3698.0,35.0]
[1736183720735,13.12752887,3698.1,3696.3,1.13121719]
[1736183720736,5.70474,3697.2,3696.7,0.8513]
[1736183721058,2.70503,3696.9,3696.7,0.8513]
[1736183721655,2.70474,3697.2,3696.7,0.8513]
[1736183721656,2.70496,3697.0,3696.8,35.0]
[1736183721836,2.70496,3696.9,3696.8,35.0]
[1736183722037,7.81370448,3696.9,3696.8,35.0]
[1736183722237,8.08420048,3696.9,3696.8,35.0]
[1736183723820,8.09170048,3696.9,3696.8,35.0]
[1736183726051,0.55,3696.7,3695.6,0.8696]
[1736183726212,2.70582,3695.8,3695.6,0.8696]
[1736183726969,2.70582,3695.8,3695.7,35.0]
[1736183731551,5.70582,3695.8,3695.7,35.0]
[1736183731753,9.3083,3695.8,3695.7,35.0]
[1736183732852,5.70582,3695.8,3695.7,35.0]
[1736183734580,10.23692,3695.8,3695.7,35.0]
[1736183734855,9.22811,3695.8,3695.7,35.0]
[1736183735217,8.78112,3695.8,3695.7,35.0]
[1736183735653,8.47935,3695.8,3695.7,35.0]
[1736183735956,8.31782,3695.8,3695.7,35.0]
[1736183736116,3.0,3695.8,3695.7,35.8185]
[1736183736315,3.47214,3697.2,3695.7,38.53607592]
[1736183736526,2.56040261,3696.6,3695.7,3.53607592]
[1736183736733,2.70548,3696.2,3695.7,0.8185]
[1736183736950,3.0,3696.2,3696.1,35.0]
[1736183738252,5.70548,3696.2,3696.1,35.0]
[1736183738475,10.70548,3696.2,3696.1,35.0]
[1736183738625,5.70548,3696.2,3696.1,35.0]
[1736183738833,6.88467826,3696.2,3696.1,35.0]
[1736183739348,3.0,3696.2,3696.1,35.0]
[1736183740745,5.70548,3696.2,3696.1,35.0]
[1736183742268,2.70512,3696.7,3696.1,35.7953]
[1736183742466,3.0,3696.6,3696.1,0.7953]
[1736183742765,2.56040261,3696.8,3696.1,0.7953]
[1736183742968,2.70526,3696.5,3696.1,0.7953]
[1736183743126,2.70535,3696.4,3696.1,0.7953]
[1736183743326,5.70535,3696.4,3696.3,35.0]
[1736183743567,6.80244126,3696.4,3696.3,35.0]
[1736183743963,3.0,3696.4,3696.3,35.0]
[1736183745073,5.70533,3696.4,3696.3,35.0]
[1736183749875,10.70533,3696.4,3696.3,35.0]
[1736183750180,5.70533,3696.4,3696.3,35.0]
[1736183750340,10.70533,3696.4,3696.3,35.0]
[1736183750674,9.42614826,3696.4,3696.3,35.0]
[1736183752780,2.70607,3695.4,3695.1,0.8269]
[1736183752981,3.8151,3695.8,3694.7,0.8269]
[1736183753185,2.70639,3695.0,3694.7,0.8269]
[1736183753345,3.0,3695.1,3694.7,0.8269]
[1736183753676,3.0,3695.1,3695.0,35.0]
[1736183754088,2.70628,3695.1,3695.0,35.0]
[1736183755180,11.09174,3695.1,3695.0,35.0]
[1736183755383,10.55945626,3695.1,3695.0,35.0]
[1736183756585,8.11630626,3695.1,3695.0,35.0]
[1736183757098,7.34960626,3695.1,3695.0,35.0]
[1736183757259,5.70628,3695.1,3695.0,35.0]
[1736183757659,10.70628,3695.1,3695.0,35.0]
[1736183758991,10.71378,3695.1,3695.0,35.0]
[1736183761094,10.70628,3695.1,3695.0,35.0]
[1736183761305,12.38562026,3695.1,3695.0,35.0]
[1736183761507,12.39312026,3695.1,3695.0,35.0]
[1736183764808,2.70657,3694.8,3694.2,0.7825]
[1736183764985,3.0,3694.7,3694.2,0.7825]
[1736183765312,3.0,3694.7,3694.6,35.0]
[1736183766882,2.70657,3694.7,3694.6,35.0]
[1736183767282,3.0,3694.8,3694.6,35.0]
[1736183767535,2.70628,3695.2,3694.2,3.48942]
[1736183767678,2.56040261,3695.8,3694.4,2.70678]
[1736183767886,2.70572,3695.9,3695.7,35.0]
[1736183768095,5.26596261,3696.1,3695.7,35.0]
[1736183768328,2.70563,3696.0,3695.6,0.7951]
[1736183768493,2.7057,3695.9,3695.6,0.7951]
[1736183768909,2.7057,3695.9,3695.8,35.0]
[1736183769107,10.27360261,3695.9,3695.8,35.0]
[1736183769444,13.27360261,3695.9,3695.8,35.0]
[1736183769644,10.67703261,3695.9,3695.8,35.0]
[1736183770157,11.26886261,3695.9,3695.8,35.0]
[1736183770357,8.27360261,3695.9,3695.8,35.0]
[1736183771791,11.10737261,3695.9,3695.8,35.0]
[1736183771997,9.65489087,3695.9,3695.8,35.0]
[1736183772547,11.73186087,3695.9,3695.8,35.0]
[1736183774351,13.03446087,3695.9,3695.8,35.0]
[1736183774547,10.47405826,3695.9,3695.8,35.0]
[1736183780456,9.92405826,3695.9,3695.8,35.0]
[1736183780667,5.7057,3695.9,3695.8,35.0]
[1736183780832,5.7132,3695.9,3695.8,35.0]
[1736183781158,8.8648,3695.9,3695.8,35.0]
[1736183781324,8.57562,3695.9,3695.8,35.0]
[1736183781525,9.95977326,3695.9,3695.8,35.0]
[1736183781734,7.09735326,3695.9,3695.8,35.0]
[1736183781940,5.7057,3695.9,3695.8,35.828]
[1736183782345,10.32703,3695.9,3695.8,35.0]
[1736183782671,8.66586,3695.9,3695.8,35.0]
[1736183782836,5.7132,3695.9,3695.8,35.0]
[1736183783153,5.7057,3695.9,3695.8,35.0]
[1736183783360,8.97915126,3695.9,3695.8,35.0]
[1736183783558,6.80286126,3695.9,3695.8,35.0]
[1736183784162,5.7057,3695.9,3695.8,35.0]
[1736183784333,7.82366,3695.9,3695.8,35.0]
[1736183784540,10.7057,3695.9,3695.8,35.0]
[1736183785061,7.94021,3695.9,3695.8,35.0]
[1736183785653,2.70612,3695.4,3695.1,0.828]
[1736183785852,2.70562,3696.1,3695.1,0.828]
[1736183786162,5.70562,3696.0,3695.9,35.82]
[1736183787167,2.7054,3696.4,3695.9,35.0]
[1736183787379,2.7054,3696.4,3696.0,0.8158]
[1736183787527,3.0,3696.3,3696.0,0.8158]
[1736183787863,2.7054,3696.4,3696.0,0.8158]
[1736183788040,2.7054,3696.4,3696.1,35.0]
[1736183788240,3.0,3696.3,3696.1,35.0]
[1736183788552,2.70543,3696.3,3696.1,35.0]
[1736183788948,3.0,3696.4,3696.1,35.0]
[1736183789166,3.0,3696.7,3696.1,35.0]
[1736183789353,3.0,3696.9,3696.2,0.829]
[1736183789668,3.0,3696.6,3696.2,0.829]
[1736183789878,3.0,3697.0,3696.2,0.829]
[1736183790100,2.70492,3697.0,3696.6,0.829]
[1736183790391,1.66150547,3697.2,3696.6,0.829]
[1736183790570,2.70491,3697.0,3696.6,0.829]
[1736183790742,1.66150547,3697.2,3696.6,0.829]
[1736183790743,2.70497,3696.9,3696.6,0.829]
[1736183791252,3.0,3696.7,3696.6,0.829]
[1736183792015,2.70511,3696.7,3696.6,0.829]
[1736183792310,5.70518,3696.6,3696.5,35.0]
[1736183795376,5.70518,3696.6,3696.3,0.7932]
[1736183795912,3.0,3696.7,3696.4,35.0]
[1736183796272,2.70526,3696.5,3696.4,35.0]
[1736183796473,5.26566261,3696.5,3696.4,35.0]
[1736183796666,13.46573887,3696.5,3696.4,35.0]
[1736183796991,9.09972887,3696.5,3696.4,35.0]
[1736183797198,5.70526,3696.5,3696.4,35.0]
[1736183797771,3.0,3696.5,3696.4,35.8023]
[1736183798085,2.70484,3697.1,3696.4,35.8023]
[1736183798284,1.66150547,3697.2,3696.4,0.8023]
[1736183798595,3.0,3696.8,3696.4,0.8023]
[1736183798804,3.0,3696.8,3696.7,35.0]
[1736183799314,2.70489,3697.0,3696.7,35.7676]
[1736183800618,3.0,3696.8,3696.7,35.7676]
[1736183801398,1.66150547,3697.2,3696.7,35.7676]
[1736183801607,2.70504,3696.8,3696.7,35.7676]
[1736183802418,5.7049,3697.0,3696.7,35.7676]
[1736183802797,3.0,3696.8,3696.7,35.7676]
[1736183803312,2.70504,3696.8,3696.7,35.7676]
[1736183803825,5.26544261,3696.8,3696.7,35.0]
[1736183803985,2.70504,3696.8,3696.7,35.0]
[1736183806102,5.26544261,3696.8,3696.7,35.0]
[1736183806434,9.44158487,3696.8,3696.7,35.0]
[1736183806600,14.44158487,3696.8,3696.7,35.0]
[1736183806935,9.44158487,3696.8,3696.7,35.0]
[1736183808023,12.14999487,3696.8,3696.7,35.0]
[1736183809811,3.0075,3696.7,3695.9,0.7876]
[1736183810010,3.0075,3696.7,3695.1,1.13013687]
[1736183810011,2.70585,3695.7,3695.6,0.8012]
[1736183810929,5.70585,3695.7,3695.6,35.8012]
[1736183811129,8.26625261,3695.7,3695.6,35.0]
[1736183817025,5.70585,3695.7,3695.6,35.0]
[1736183818306,8.26625261,3695.7,3695.6,35.0]
[1736183820150,5.70585,3695.7,3695.6,35.0]
[1736183820740,2.70541,3696.3,3695.7,0.8065]
[1736183820958,3.0,3695.8,3695.7,0.8065]
[1736183821164,5.70577,3695.8,3694.8,0.8065]
[1736183821303,5.70577,3695.8,3695.7,35.0]
[1736183823719,13.26617261,3695.8,3695.7,35.0]
[1736183823925,13.69144787,3695.8,3695.7,35.0]
[1736183824125,9.86334787,3695.8,3695.7,35.0]
[1736183824946,13.42734787,3695.8,3695.7,35.0]
[1736183825148,14.20314787,3695.8,3695.7,35.0]
[1736183825451,10.63914787,3695.8,3695.7,35.0]
[1736183826447,2.56040261,3696.1,3695.7,35.0]
[1736183826649,2.56040261,3696.4,3695.8,0.7732]
[1736183826851,3.0,3696.2,3695.8,0.7732]
[1736183827152,2.70541,3696.3,3696.1,35.0]
[1736183827307,2.56040261,3696.7,3696.1,35.0]
[1736183827515,3.0,3696.4,3695.8,0.7732]
[1736183827736,5.70535,3696.4,3695.8,0.7732]
[1736183827937,5.70535,3696.4,3696.3,35.0]
[1736183828138,2.70502,3696.9,3696.4,0.8309]
[1736183828337,2.70502,3696.9,3696.4,0.85795149]
[1736183828610,2.56040261,3697.3,3696.4,3.57552741]
[1736183828815,2.7048,3697.2,3696.4,0.85795149]
[1736183829017,3.0,3697.1,3696.4,0.85795149]
[1736183829221,3.0,3697.1,3697.0,35.0]
[1736183829457,3.0,3697.1,3697.0,35.8309]
[1736183830271,2.70482,3697.1,3697.0,35.8309]
[1736183830445,3.53134226,3697.1,3697.0,35.0]
[1736183830654,2.70482,3697.1,3697.0,35.0]
[1736183839580,5.70482,3697.1,3697.0,35.0]
[1736183840467,10.70482,3697.1,3697.0,35.0]
[1736183840665,7.9003,3697.1,3697.0,35.0]
[1736183845947,5.70562,3696.0,3695.8,1.13013687]
[1736183846149,11.69334261,3695.9,3695.7,1.13013687]
[1736183846373,5.70577,3695.8,3695.7,1.13013687]
[1736183846947,5.70577,3695.8,3695.7,36.13013687]
[1736183847484,5.70577,3695.8,3695.7,35.0]
[1736183849043,7.98947,3695.8,3695.7,35.0]
[1736183849981,2.2837,3695.8,3695.7,35.0]
[1736183850187,5.56040261,3695.9,3695.8,0.7755]
[1736183850350,3.0,3695.9,3695.8,0.7755]
[1736183850771,3.0,3695.9,3695.8,35.7755]
[1736183850976,5.56040261,3695.9,3695.8,35.7755]
[1736183853455,5.56040261,3695.9,3695.8,35.0]
[1736183854130,8.26610261,3695.9,3695.8,35.0]
[1736183855163,5.7057,3695.9,3695.8,35.0]
[1736183855911,3.0,3695.9,3695.8,35.0]
[1736183856227,1.35079678,3696.9,3695.9,0.8001]
[1736183856367,0.8091,3697.2,3696.0,0.02705307]
[1736183856567,3.51387,3697.2,3695.4,0.8001]
[1736183856785,2.70512,3696.7,3695.6,2.70586]
[1736183857009,2.70512,3696.7,3695.7,0.8001]
[1736183857212,3.0,3696.6,3695.8,0.8208]
[1736183857385,3.0,3696.8,3696.5,35.8208]
[1736183857581,3.0,3697.2,3696.5,35.8208]
[1736183857782,2.7051,3696.8,3696.5,0.8208]
[1736183858191,2.7051,3696.8,3696.7,35.0]
[1736183860219,5.7051,3696.8,3696.7,35.0]
[1736183861321,0.8291,3697.5,3696.7,35.0]
[1736183861618,0.0075,3697.8,3696.9,0.7599]
[1736183861619,2.70474,3697.3,3696.9,0.7599]
[1736183861848,2.70476,3697.2,3696.9,0.7599]
[1736183862028,2.70476,3697.2,3697.1,35.0]
[1736183862407,5.70476,3697.2,3697.1,35.0]
[1736183862987,6.46766,3697.2,3697.1,35.0]
[1736183863326,5.70476,3697.2,3697.1,35.0]
[1736183865237,9.30534,3697.2,3697.1,35.0]
[1736183865721,9.86284,3697.2,3697.1,35.0]
[1736183866288,2.70533,3696.4,3696.3,0.7551]
[1736183866552,5.70533,3696.4,3696.3,0.7551]
[1736183867123,2.70482,3697.1,3695.8,0.79]
[1736183867124,0.8228,3696.6,3695.8,0.79]
[1736183867307,2.70537,3696.4,3696.3,35.0]
[1736183872114,2.70537,3696.4,3695.8,0.79]
[1736183872315,2.7057,3695.9,3695.5,0.7664]
[1736183872521,3.0,3695.8,3695.5,0.7664]
[1736183872830,3.0,3695.8,3695.7,35.0]
[1736183875454,2.70577,3695.8,3695.7,35.0]
[1736183876159,3.0,3695.9,3695.7,35.0]
[1736183876336,3.0,3695.9,3695.5,0.7664]
[1736183876531,0.8228,3696.6,3695.6,0.02705624]
[1736183876864,2.55450793,3697.5,3695.6,0.02705624]
[1736183876865,2.70504,3696.8,3696.5,35.0]
[1736183877174,5.70512,3696.7,3696.6,0.7568]
[1736183877671,0.5575,3697.2,3696.6,35.0]
[1736183877823,2.70511,3696.7,3696.6,35.0]
[1736183878020,3.46841,3696.7,3696.6,35.0]
[1736183878216,5.71654,3696.7,3696.6,35.0]
[1736183878419,2.70511,3696.7,3696.6,35.0]
[1736183878615,3.0,3696.8,3696.7,0.8191]
[1736183879376,2.70473,3697.3,3696.7,0.8191]
[1736183879522,2.70475,3697.2,3696.7,0.8191]
[1736183879724,3.0,3697.1,3696.7,0.8191]
[1736183880037,2.70483,3697.1,3696.7,0.8191]
[1736183881131,0.8255,3697.8,3696.7,0.8191]
[1736183881337,2.70452,3697.6,3696.9,0.7896]
[1736183881559,3.0,3697.5,3697.0,0.02704474]
[1736183881952,3.0,3697.5,3696.9,0.7896]
[1736183882152,3.0,3697.5,3696.9,1.139078]
[1736183883539,3.0,3697.5,3696.9,0.7896]
[1736183883940,2.70439,3697.7,3697.1,0.7752]
[1736183884121,2.70439,3697.7,3697.2,0.02704382]
[1736183884327,1.66120273,3697.9,3697.1,0.7752]
[1736183884660,3.0,3697.2,3697.1,0.7752]
[1736183884863,2.70474,3697.2,3697.1,0.7752]
[1736183885037,0.0075,3697.8,3696.7,0.7561]
[1736183885243,2.70489,3697.1,3696.7,0.7561]
[1736183886865,2.70504,3696.8,3696.7,0.7561]
[1736183887065,2.70479,3697.2,3696.4,0.8312]
[1736183887363,3.0,3696.8,3696.4,0.8312]
[1736183887571,5.70506,3696.8,3696.4,0.8312]
[1736183889278,2.70526,3696.5,3696.4,0.8312]
[1736183889434,3.0,3696.9,3696.1,0.8012]
[1736183889774,2.70481,3697.2,3696.2,0.02705113]
[1736183889998,2.70481,3697.2,3696.3,0.8012]
[1736183890283,3.0,3697.2,3696.3,0.8012]
[1736183890442,5.70533,3696.4,3696.0,0.8081]
[1736183891668,2.70542,3696.3,3696.0,0.8081]
[1736183892268,3.0,3696.2,3696.0,0.8081]
[1736183895395,3.0,3696.3,3696.0,0.8081]
[1736183895696,3.0,3696.7,3696.0,0.8081]
[1736183895840,2.70564,3696.0,3695.7,0.7739]
[1736183896263,3.0,3695.8,3695.6,1.40421913]
[1736183896458,3.0,3695.8,3695.4,1.90403687]
[1736183896459,2.70584,3695.7,3695.5,1.40421913]
[1736183896883,3.0,3695.8,3695.5,1.40421913]
[1736183897794,3.0,3695.8,3695.4,0.7739]
[1736183898193,3.0,3695.7,3695.4,0.7739]
[1736183898764,2.7059,3695.7,3695.4,0.7739]
[1736183898994,2.70606,3695.5,3695.3,1.40421913]
[1736183899155,5.70606,3695.4,3695.3,1.40421913]
[1736183899802,2.70621,3695.2,3695.0,0.7871]
[1736183900874,2.7063,3695.1,3694.9,1.13013687]
[1736183901191,2.7063,3695.1,3694.7,0.8082]
[1736183901558,3.0,3695.5,3694.7,0.8082]
[1736183901796,2.70617,3695.3,3694.7,0.8082]
[1736183901995,5.70617,3695.3,3695.2,35.0]
[1736183903297,7.92265,3695.3,3695.2,35.0]
[1736183903499,5.70617,3695.3,3695.2,35.0]
[1736183903662,7.79297,3695.3,3695.2,35.0]
[1736183906750,7.80047,3695.3,3695.2,35.0]
[1736183906895,8.929642,3695.3,3695.2,35.0]
[1736183907222,9.758642,3695.3,3695.2,35.0]
[1736183908906,8.62947,3695.3,3695.2,35.0]
[1736183910137,8.62197,3695.3,3695.2,35.0]
[1736183912632,8.62947,3695.3,3695.2,35.0]
[1736183914429,8.62947,3695.3,3693.9,0.113943]
[1736183914430,3.0,3694.5,3693.9,0.113943]
[1736183914636,2.70699,3694.2,3693.9,0.113943]
[1736183915092,3.49973448,3694.6,3693.9,0.113943]
[1736183915093,3.0,3694.3,3693.9,0.113943]
[1736183915490,2.7065,3694.9,3694.2,35.0]
[1736183915491,3.0,3694.7,3694.2,35.0]
[1736183915638,2.70687,3694.3,3694.2,35.0]
[1736183916003,5.70687,3694.3,3694.2,35.0]
[1736183917013,8.53858,3694.3,3694.2,35.0]
[1736183917806,8.54608,3694.3,3694.2,35.0]
[1736183918203,3.0075,3694.2,3693.9,0.113943]
[1736183918509,6.51269,3694.0,3693.9,0.113943]
[1736183918723,11.51269,3694.0,3693.9,0.113943]
[1736183919440,11.51269,3694.0,3693.4,0.0027]
[1736183919441,6.50555,3693.5,3693.4,0.0027]
[1736183919640,11.51305,3693.5,3693.4,0.0027]
[1736183921220,3.5575,3693.4,3693.1,0.005]
[1736183921542,6.51327,3693.2,3693.1,0.005]
[1736183921842,6.51327,3693.2,3691.2,1.13013687]
[1736183921843,2.70866,3691.9,3691.2,1.13013687]
[1736183922142,0.0075,3692.5,3691.2,1.13013687]
[1736183922317,3.0,3691.7,3691.2,1.13013687]
[1736183922521,2.70879,3691.7,3690.7,2.44841582]
[1736183922730,2.70879,3691.7,3691.6,35.0]
[1736183922930,5.70879,3691.7,3691.6,35.0]
[1736183923310,8.42413,3691.7,3691.6,35.0]
[1736183923711,5.70879,3691.7,3691.6,35.0]
[1736183924347,12.085669,3691.7,3691.6,35.0]
[1736183924649,11.51479,3691.7,3691.6,35.0]
[1736183925347,3.0,3691.6,3690.4,0.7957]
[1736183925528,10.70885,3691.6,3690.4,0.7957]
[1736183925715,12.131214,3691.6,3690.4,0.7957]
[1736183926255,0.0075,3691.1,3690.4,0.7957]
[1736183926413,2.70912,3691.3,3690.4,0.7957]
[1736183926618,2.70973,3690.4,3690.2,0.1793834]
[1736183926819,2.70976,3690.4,3690.3,35.0]
[1736183927036,11.805336,3690.4,3690.3,35.0]
[1736183927349,6.2673,3690.3,3690.2,3.4e-06]
[1736183927536,5.71752,3690.0,3689.9,3.4e-06]
[1736183927736,10.71752,3690.0,3689.9,3.4e-06]
[1736183927941,12.08462,3690.0,3689.9,3.4e-06]
[1736183928141,13.564062,3690.0,3689.9,3.4e-06]
[1736183928657,13.014062,3690.0,3689.9,3.4e-06]
[1736183928861,11.52712,3690.0,3689.9,3.4e-06]
[1736183929225,11.53462,3690.0,3689.9,3.4e-06]
[1736183929943,5.71002,3690.0,3689.9,3.4e-06]
[1736183930259,2.71002,3690.0,3689.9,3.4e-06]
[1736183930414,2.71002,3690.0,3689.9,35.0000034]
[1736183930616,2.70987,3690.3,3689.9,35.0000034]
[1736183930850,2.70964,3690.6,3689.9,3.4e-06]
[1736183931047,0.0075,3690.8,3689.9,3.4e-06]
[1736183931247,3.50416,3691.0,3689.9,3.4e-06]
[1736183931448,2.70873,3691.8,3689.9,3.4e-06]
[1736183931449,2.70967,3690.5,3689.9,3.4e-06]
[1736183931752,2.70973,3690.5,3689.9,3.4e-06]
[1736183932053,0.350416,3691.0,3690.4,35.0]
[1736183932257,2.70933,3691.0,3690.2,0.7592]
[1736183932439,0.0075,3691.3,3690.2,0.7592]
[1736183932618,3.0,3690.8,3690.2,0.7592]
[1736183932820,3.0,3690.8,3690.7,35.0]
[1736183933015,2.70943,3690.8,3690.7,35.0]
[1736183933319,6.280373,3690.8,3690.7,35.0]
[1736183933530,8.63205,3690.8,3690.7,35.0]
[1736183934142,8.63955,3690.8,3690.7,35.0]
[1736183934347,5.71002,3690.0,3689.9,3.4e-06]
[1736183934742,2.70958,3690.7,3689.9,3.4e-06]
[1736183935051,0.5575,3691.3,3689.9,3.4e-06]
[1736183935228,2.70984,3690.3,3689.9,3.4e-06]
[1736183935557,3.0,3690.4,3689.9,3.4e-06]
[1736183935720,3.0,3690.4,3690.3,35.0]
[1736183936759,2.70966,3690.5,3690.3,35.0]
[1736183936977,2.70974,3690.4,3689.9,3.4e-06]
[1736183937124,2.70951,3690.7,3689.9,3.4e-06]
[1736183937318,2.70934,3691.0,3689.9,3.4e-06]
[1736183937570,2.70947,3690.8,3689.9,3.4e-06]
[1736183937758,2.70913,3691.3,3689.9,3.4e-06]
[1736183937937,2.70903,3691.4,3690.6,35.0]
[1736183938338,2.70903,3691.4,3690.1,2.70993]
[1736183938541,2.70903,3691.4,3690.2,0.40744416]
[1736183938821,2.70865,3691.9,3691.3,0.7696]
[1736183939345,3.0,3692.1,3690.3,0.7696]
[1736183939662,0.5575,3692.1,3690.3,0.7696]
[1736183939963,2.70957,3690.7,3690.3,0.7696]
[1736183940121,2.70967,3690.5,3690.3,0.7696]
[1736183940327,2.70947,3690.8,3690.3,0.7696]
[1736183940521,2.70935,3691.0,3690.4,0.02709745]
[1736183940870,2.70952,3690.7,3690.3,0.7696]
[1736183941326,3.0,3691.4,3690.3,0.7696]
[1736183941521,2.70966,3690.5,3690.3,0.7696]
[1736183941781,2.70966,3690.5,3689.9,0.8061034]
[1736183941782,2.70972,3690.5,3689.9,0.8061034]
[1736183941983,2.70982,3690.3,3689.9,0.8061034]
[1736183942289,2.70989,3690.2,3689.9,0.8061034]
[1736183942456,3.0,3690.8,3689.9,0.8061034]
[1736183942666,2.70988,3690.2,3689.9,0.8061034]
[1736183943780,0.0075,3691.1,3689.9,0.8061034]
[1736183943949,4.36963962,3691.5,3689.9,0.8061034]
[1736183944151,3.0,3690.7,3689.9,0.8061034]
[1736183944347,3.0,3690.7,3690.0,0.02709725]
[1736183944543,2.70899,3691.4,3690.0,0.02709725]
[1736183944787,2.70879,3691.7,3690.5,2.70965]
[1736183944944,2.70892,3691.5,3690.4,0.8263]
[1736183945281,2.709,3691.4,3690.4,0.8263]
[1736183945449,2.7091,3691.3,3690.5,0.40733712]
[1736183945650,2.7091,3691.3,3690.4,0.8263]
[1736183945852,0.0075,3691.9,3690.4,0.8263]
[1736183946048,0.0075,3691.6,3690.4,0.8263]
[1736183946383,3.0,3691.7,3690.4,0.8263]
[1736183946384,3.0,3691.0,3690.4,0.8263]
[1736183946587,2.70936,3690.9,3690.4,0.8263]
[1736183947994,2.70899,3691.4,3690.4,0.8263]
[1736183948283,3.25255718,3692.3,3690.4,0.8263]
[1736183948284,3.0,3691.2,3690.4,0.8263]
[1736183948789,0.0075,3691.8,3690.4,0.8263]
[1736183949093,2.7093,3691.0,3690.4,0.8263]
[1736183949479,2.70935,3691.0,3690.4,0.8263]
[1736183950011,3.0,3691.1,3690.4,0.8263]
[1736183950164,0.0075,3691.9,3690.4,0.8263]
[1736183950351,0.0075,3691.9,3689.9,0.02709776]
[1736183950352,2.70872,3691.8,3690.6,2.70958]
[1736183950697,2.70847,3692.2,3690.7,0.30075706]
[1736183950984,1.66375249,3692.4,3691.0,0.8232]
[1736183951191,2.70904,3691.4,3691.0,0.8232]
[1736183951350,0.8132,3692.1,3691.0,0.8232]
[1736183951557,3.0,3692.0,3691.0,0.8232]
[1736183951826,0.652173,3691.9,3691.0,0.8232]
[1736183951994,3.0,3691.5,3691.0,0.8232]
[1736183952478,2.709,3691.4,3691.0,0.8232]
[1736183952688,3.0,3691.0,3690.0,0.8307]
[1736183952889,2.70962,3690.6,3690.0,0.8307]
[1736183953270,2.70978,3690.4,3690.0,0.8307]
[1736183953611,2.70995,3690.1,3690.0,0.8307]
[1736183953913,0.270978,3690.4,3690.0,0.8307]
[1736183954053,2.70995,3690.1,3690.0,0.8307]
[1736183954266,3.0,3690.2,3690.0,0.8307]
[1736183954478,2.70995,3690.1,3690.0,0.8307]
[1736183954782,0.270978,3690.4,3689.9,3.4e-06]
[1736183955103,0.77038394,3691.9,3689.9,3.4e-06]
[1736183955104,5.71002,3690.0,3689.9,3.4e-06]
[1736183955263,9.22838,3690.0,3689.9,3.4e-06]
[1736183955462,9.23588,3690.0,3689.9,3.4e-06]
[1736183955675,9.78588,3690.0,3689.9,3.4e-06]
[1736183955873,10.581618,3690.0,3689.9,3.4e-06]
[1736183956804,11.131618,3690.0,3689.9,3.4e-06]
[1736183957263,11.897518,3690.0,3689.9,3.4e-06]
[1736183957864,2.71057,3689.3,3688.1,0.005]
[1736183958064,0.7659,3689.4,3688.2,0.7574]
[1736183958300,0.7659,3689.4,3688.1,0.005]
[1736183958602,3.0,3688.6,3688.2,0.7927]
[1736183958966,2.71109,3688.6,3688.2,0.7927]
[1736183959169,2.71032,3689.6,3688.2,0.81981161]
[1736183959392,2.71065,3689.2,3688.2,0.81981051]
[1736183959562,2.71071,3689.1,3688.2,0.7927]
[1736183960199,3.0,3689.4,3688.2,0.7927]
[1736183960402,2.71086,3688.9,3688.2,0.7927]
[1736183961006,2.71086,3688.9,3688.2,0.7427]
[1736183961299,5.71053,3689.4,3688.2,0.7427]
[1736183961300,2.71053,3689.4,3688.2,0.7427]
[1736183961492,0.271053,3689.3,3688.2,0.7427]
[1736183961692,2.71097,3688.8,3688.2,0.7427]
[1736183962003,3.0075,3689.3,3688.2,0.7427]
[1736183962201,2.71114,3688.5,3688.2,0.7427]
[1736183962388,3.0,3688.7,3688.2,0.7427]
[1736183962595,5.711,3688.7,3688.2,0.7427]
[1736183962967,2.71113,3688.5,3688.2,0.7427]
[1736183963201,3.0,3688.8,3688.2,0.7427]
[1736183963399,3.0,3689.1,3688.2,0.7427]
[1736183963609,0.0075,3689.6,3688.2,0.7427]
[1736183963610,2.71105,3688.6,3688.2,0.7427]
[1736183964668,2.71069,3689.1,3688.2,0.7427]
[1736183965073,2.7104,3689.5,3688.2,0.7427]
[1736183965074,3.0,3688.9,3688.2,0.7427]
[1736183965287,2.71085,3688.9,3688.2,0.7427]
[1736183965512,2.71085,3688.9,3688.1,0.005]
[1736183965513,2.71051,3689.4,3688.3,0.7582]
[1736183965806,2.70992,3690.2,3688.4,0.7944]
[1736183966012,3.46978,3690.8,3688.7,2.71098]
[1736183966214,0.7603,3690.8,3688.9,0.7944]
[1736183966385,2.70989,3690.2,3688.6,0.55]
[1736183966713,2.70989,3690.2,3689.1,0.7944]
[1736183966911,2.70989,3690.2,3689.2,0.350513]
[1736183967140,2.70989,3690.2,3689.3,0.8083]
[1736183967274,2.70971,3690.5,3689.4,0.02709957]
[1736183967480,3.0,3690.3,3689.4,0.02709912]
[1736183967783,3.0,3690.3,3689.5,0.38965121]